[Event "Early-Titled-Tuesday-Blitz-September-26-2023"]
[Site "Chess.com"]
[Date "2023.09.26"]
[Round "5"]
[White "lrestevez"]
[Black "maracayo"]
[Result "0-1"]
[WhiteElo "2205"]
[BlackElo "2385"]
[TimeControl "180+1"]
[EndTime "8:58:13 PDT"]
[Termination "maracayo won by checkmate"]

1. e4 {[%clk 0:02:42.6]} 1... d6 {[%clk 0:03:00.9]} 2. d4 {[%clk 0:02:40.2]}
2... Nf6 {[%clk 0:03:00.8]} 3. Nc3 {[%clk 0:02:40.5]} 3... c6 {[%clk 0:03:01]}
4. Be3 {[%clk 0:02:41]} 4... Qa5 {[%clk 0:03:00.7]} 5. Qd2 {[%clk 0:02:40.4]}
5... e5 {[%clk 0:03:00.7]} 6. dxe5 {[%clk 0:02:39.8]} 6... dxe5 {[%clk
0:03:01.6]} 7. Nge2 {[%clk 0:02:38]} 7... Be7 {[%clk 0:03:00.9]} 8. Nc1 {[%clk
0:02:37.7]} 8... O-O {[%clk 0:03:00.3]} 9. Nb3 {[%clk 0:02:37.5]} 9... Qc7
{[%clk 0:03:00.4]} 10. Bd3 {[%clk 0:02:37.4]} 10... Nbd7 {[%clk 0:02:59.1]} 11.
O-O {[%clk 0:02:36.3]} 11... b5 {[%clk 0:02:58.3]} 12. a4 {[%clk 0:02:25]} 12...
b4 {[%clk 0:02:52.2]} 13. Ne2 {[%clk 0:02:23.7]} 13... c5 {[%clk 0:02:46]} 14.
Bc4 {[%clk 0:01:46.1]} 14... Nb6 {[%clk 0:02:34.6]} 15. Bb5 {[%clk 0:01:43.6]}
15... Nxe4 {[%clk 0:02:21.4]} 16. Qe1 {[%clk 0:01:42.7]} 16... Be6 {[%clk
0:01:49.4]} 17. a5 {[%clk 0:01:39.5]} 17... Nc4 {[%clk 0:01:47.4]} 18. Ng3
{[%clk 0:01:33.2]} 18... Ned6 {[%clk 0:01:30.3]} 19. Ba4 {[%clk 0:01:13.3]}
19... Nxe3 {[%clk 0:01:23.4]} 20. Qxe3 {[%clk 0:01:11]} 20... Nc4 {[%clk
0:01:19.6]} 21. Qc1 {[%clk 0:01:09.1]} 21... Rad8 {[%clk 0:01:11]} 22. Bb5
{[%clk 0:01:06.7]} 22... Qb7 {[%clk 0:01:03.6]} 23. Bxc4 {[%clk 0:01:01.6]}
23... Bxc4 {[%clk 0:01:04.5]} 24. Rd1 {[%clk 0:01:00.5]} 24... Rxd1+ {[%clk
0:01:01.2]} 25. Qxd1 {[%clk 0:01:00.5]} 25... Rd8 {[%clk 0:01:01.6]} 26. Qe1
{[%clk 0:00:58.9]} 26... Qd5 {[%clk 0:00:57.9]} 27. Nf5 {[%clk 0:00:56.9]} 27...
Bf8 {[%clk 0:00:52.2]} 28. h4 {[%clk 0:00:49.9]} 28... Bxb3 {[%clk 0:00:48]} 29.
cxb3 {[%clk 0:00:50.5]} 29... g6 {[%clk 0:00:47.1]} 30. Ne3 {[%clk 0:00:46.3]}
30... Qxb3 {[%clk 0:00:46.6]} 31. Qe2 {[%clk 0:00:42.2]} 31... e4 {[%clk
0:00:43.2]} 32. h5 {[%clk 0:00:39.1]} 32... Bh6 {[%clk 0:00:30.8]} 33. hxg6
{[%clk 0:00:38.9]} 33... hxg6 {[%clk 0:00:29.6]} 34. Ng4 {[%clk 0:00:38.1]}
34... Bg7 {[%clk 0:00:24.9]} 35. Qxe4 {[%clk 0:00:32.3]} 35... Qxb2 {[%clk
0:00:24]} 36. Rf1 {[%clk 0:00:23.7]} 36... Qd4 {[%clk 0:00:23.4]} 37. Qe2 {[%clk
0:00:21.2]} 37... c4 {[%clk 0:00:23.5]} 38. Ne3 {[%clk 0:00:20.4]} 38... c3
{[%clk 0:00:22.8]} 39. Rd1 {[%clk 0:00:20.5]} 39... Qf6 {[%clk 0:00:21.5]} 40.
Rxd8+ {[%clk 0:00:20.2]} 40... Qxd8 {[%clk 0:00:22.4]} 41. Qc4 {[%clk
0:00:19.3]} 41... Qb8 {[%clk 0:00:21.6]} 42. a6 {[%clk 0:00:18.4]} 42... b3
{[%clk 0:00:21.5]} 43. Nd5 {[%clk 0:00:16.4]} 43... b2 {[%clk 0:00:20.5]} 44.
Ne7+ {[%clk 0:00:17.1]} 44... Kf8 {[%clk 0:00:20.3]} 45. Qc5 {[%clk 0:00:17.6]}
45... b1=Q# {[%clk 0:00:19.8]} 0-1

[Event "Early-Titled-Tuesday-Blitz-September-26-2023"]
[Site "Chess.com"]
[Date "2023.09.26"]
[Round "5"]
[White "giomar27"]
[Black "Sinquefield"]
[Result "0-1"]
[WhiteElo "2271"]
[BlackElo "2535"]
[TimeControl "180+1"]
[EndTime "8:58:14 PDT"]
[Termination "Sinquefield won by resignation"]

1. d4 {[%clk 0:03:00.9]} 1... Nf6 {[%clk 0:02:58]} 2. Nc3 {[%clk 0:02:59.3]}
2... d6 {[%clk 0:02:54.3]} 3. e4 {[%clk 0:02:58]} 3... Nbd7 {[%clk 0:02:55.1]}
4. Bg5 {[%clk 0:02:54.3]} 4... e5 {[%clk 0:02:55.5]} 5. Nf3 {[%clk 0:02:48.3]}
5... Be7 {[%clk 0:02:50.9]} 6. Bc4 {[%clk 0:02:47.8]} 6... O-O {[%clk
0:02:50.2]} 7. O-O {[%clk 0:02:47.4]} 7... c6 {[%clk 0:02:50.4]} 8. a4 {[%clk
0:02:47.1]} 8... b6 {[%clk 0:02:49.6]} 9. Re1 {[%clk 0:02:47.1]} 9... a6 {[%clk
0:02:49]} 10. Qd2 {[%clk 0:02:46.2]} 10... Rb8 {[%clk 0:02:48.7]} 11. Bf1 {[%clk
0:02:45]} 11... b5 {[%clk 0:02:48.5]} 12. axb5 {[%clk 0:02:44.9]} 12... axb5
{[%clk 0:02:48.4]} 13. h3 {[%clk 0:02:38.2]} 13... Re8 {[%clk 0:02:38.6]} 14. d5
{[%clk 0:02:38.4]} 14... cxd5 {[%clk 0:02:36.9]} 15. exd5 {[%clk 0:02:36.7]}
15... b4 {[%clk 0:02:37.1]} 16. Nb5 {[%clk 0:02:24.4]} 16... Nc5 {[%clk
0:02:23.4]} 17. Na7 {[%clk 0:02:16.5]} 17... Nfe4 {[%clk 0:01:38.8]} 18. Bxe7
{[%clk 0:02:07.7]} 18... Qxe7 {[%clk 0:01:37.2]} 19. Nc6 {[%clk 0:01:56.2]}
19... Nxd2 {[%clk 0:01:36.2]} 20. Nxe7+ {[%clk 0:01:56.3]} 20... Rxe7 {[%clk
0:01:37.1]} 21. Nxd2 {[%clk 0:01:56.4]} 21... Bf5 {[%clk 0:01:34.5]} 22. Nc4
{[%clk 0:01:50.3]} 22... Rd7 {[%clk 0:01:27.5]} 23. Ne3 {[%clk 0:01:49.5]} 23...
Bg6 {[%clk 0:01:27.1]} 24. Bb5 {[%clk 0:01:41.7]} 24... Rdd8 {[%clk 0:01:10.4]}
25. Bc6 {[%clk 0:01:41.3]} 25... h6 {[%clk 0:01:09.7]} 26. Ra7 {[%clk
0:01:35.5]} 26... f5 {[%clk 0:01:06.2]} 27. Nc4 {[%clk 0:01:35.1]} 27... f4
{[%clk 0:01:04.7]} 28. Rea1 {[%clk 0:01:17.6]} 28... Bxc2 {[%clk 0:00:44.2]} 29.
Rc7 {[%clk 0:01:17.8]} 29... Rbc8 {[%clk 0:00:26]} 30. Re7 {[%clk 0:01:14.1]}
30... Ba4 {[%clk 0:00:15.6]} 31. Bxa4 {[%clk 0:01:08.1]} 31... Nxa4 {[%clk
0:00:15.6]} 32. Nxd6 {[%clk 0:00:55.4]} 32... Rxd6 {[%clk 0:00:15]} 33. Rxa4
{[%clk 0:00:55.7]} 33... Rxd5 {[%clk 0:00:14.2]} 34. Raa7 {[%clk 0:00:56]} 34...
Rc1+ {[%clk 0:00:11.6]} 35. Kh2 {[%clk 0:00:55.9]} 35... Rdd1 {[%clk 0:00:12.2]}
36. Rxg7+ {[%clk 0:00:50.4]} 36... Kf8 {[%clk 0:00:12.3]} 37. Raf7+ {[%clk
0:00:48.1]} 37... Ke8 {[%clk 0:00:12.8]} 38. g3 {[%clk 0:00:48.7]} 38... Rh1+
{[%clk 0:00:10.1]} 39. Kg2 {[%clk 0:00:48.5]} 39... Rhg1+ {[%clk 0:00:09.7]} 40.
Kf3 {[%clk 0:00:47.3]} 40... fxg3 {[%clk 0:00:10.2]} 41. Re7+ {[%clk 0:00:44.9]}
41... Kd8 {[%clk 0:00:09.2]} 42. Rd7+ {[%clk 0:00:43.4]} 42... Kc8 {[%clk
0:00:09.2]} 43. fxg3 {[%clk 0:00:43.3]} 43... Rgf1+ {[%clk 0:00:07.8]} 44. Ke4
{[%clk 0:00:43.4]} 44... Rce1+ {[%clk 0:00:07.5]} 45. Kd5 {[%clk 0:00:41.4]}
45... Rd1+ {[%clk 0:00:07.7]} 46. Kc6 {[%clk 0:00:37.1]} 46... Rxd7 {[%clk
0:00:06.9]} 47. Rxd7 {[%clk 0:00:33.7]} 47... Rc1+ {[%clk 0:00:07.1]} 0-1

[Event "Early-Titled-Tuesday-Blitz-September-26-2023"]
[Site "Chess.com"]
[Date "2023.09.26"]
[Round "5"]
[White "HrvojeZagreb"]
[Black "kleopl"]
[Result "0-1"]
[WhiteElo "2286"]
[BlackElo "2464"]
[TimeControl "180+1"]
[EndTime "8:58:14 PDT"]
[Termination "kleopl won by resignation"]

1. f4 {[%clk 0:02:57.9]} 1... c5 {[%clk 0:02:57.7]} 2. e4 {[%clk 0:02:57.9]}
2... Nc6 {[%clk 0:02:57.4]} 3. Nf3 {[%clk 0:02:58]} 3... d5 {[%clk 0:02:57.1]}
4. e5 {[%clk 0:02:55.5]} 4... Bg4 {[%clk 0:02:56.7]} 5. Be2 {[%clk 0:02:55]}
5... e6 {[%clk 0:02:57.1]} 6. O-O {[%clk 0:02:46.3]} 6... Nge7 {[%clk 0:02:57]}
7. c3 {[%clk 0:02:42.3]} 7... Nf5 {[%clk 0:02:56.4]} 8. Qe1 {[%clk 0:02:33.5]}
8... Be7 {[%clk 0:02:54.9]} 9. Na3 {[%clk 0:02:24.4]} 9... h5 {[%clk 0:02:52.5]}
10. Nc2 {[%clk 0:02:23.8]} 10... Qb6 {[%clk 0:02:47.1]} 11. a4 {[%clk
0:01:44.2]} 11... c4+ {[%clk 0:02:38.9]} 12. Kh1 {[%clk 0:01:40.4]} 12... h4
{[%clk 0:02:37.4]} 13. Nfd4 {[%clk 0:01:30.6]} 13... Ncxd4 {[%clk 0:02:16.2]}
14. Nxd4 {[%clk 0:01:27.9]} 14... Nxd4 {[%clk 0:02:14.6]} 15. cxd4 {[%clk
0:01:28.8]} 15... Bxe2 {[%clk 0:02:13.6]} 16. Qxe2 {[%clk 0:01:28]} 16... Qxd4
{[%clk 0:02:13.8]} 17. Ra3 {[%clk 0:01:16.2]} 17... Bxa3 {[%clk 0:02:12.1]} 18.
bxa3 {[%clk 0:01:17.1]} 18... h3 {[%clk 0:02:05.2]} 19. g3 {[%clk 0:01:14.5]}
19... Qd3 {[%clk 0:01:57.9]} 20. Qxd3 {[%clk 0:01:01.7]} 20... cxd3 {[%clk
0:01:58.8]} 21. Bb2 {[%clk 0:01:00.7]} 21... Rc8 {[%clk 0:01:58.7]} 22. Bc3
{[%clk 0:01:00.4]} 22... Rc4 {[%clk 0:01:52.6]} 23. a5 {[%clk 0:00:53.4]} 23...
d4 {[%clk 0:01:34.8]} 24. Bb4 {[%clk 0:00:53.1]} 24... Kd7 {[%clk 0:01:34.2]}
25. Kg1 {[%clk 0:00:52.3]} 25... Rhc8 {[%clk 0:01:31.7]} 26. Rf3 {[%clk
0:00:50.9]} 26... Rc1+ {[%clk 0:01:26.4]} 27. Kf2 {[%clk 0:00:51]} 27... Rh1
{[%clk 0:01:25.9]} 28. Rxd3 {[%clk 0:00:50.8]} 28... Rxh2+ {[%clk 0:01:26]} 29.
Kf3 {[%clk 0:00:50.6]} 29... Rc4 {[%clk 0:01:22.8]} 30. g4 {[%clk 0:00:43.4]}
30... Rg2 {[%clk 0:01:15.3]} 31. Ke4 {[%clk 0:00:39]} 31... h2 {[%clk
0:01:13.4]} 32. Rh3 {[%clk 0:00:38.6]} 32... d3+ {[%clk 0:01:04.2]} 33. Kf3
{[%clk 0:00:35.5]} 33... Re2 {[%clk 0:01:00.5]} 34. Kg3 {[%clk 0:00:32.6]} 34...
g6 {[%clk 0:00:55.9]} 35. Rxh2 {[%clk 0:00:15.2]} 35... Rxh2 {[%clk 0:00:55.2]}
36. Kxh2 {[%clk 0:00:16.1]} 36... Rxf4 {[%clk 0:00:55.1]} 37. Kg3 {[%clk
0:00:16.6]} 37... Re4 {[%clk 0:00:53.2]} 38. Bc3 {[%clk 0:00:16]} 38... Kc6
{[%clk 0:00:52.9]} 39. Kf3 {[%clk 0:00:15.9]} 39... Kd5 {[%clk 0:00:53.2]} 40.
Kg3 {[%clk 0:00:13.9]} 40... Rxe5 {[%clk 0:00:50.6]} 41. Bxe5 {[%clk 0:00:12.5]}
41... Kxe5 {[%clk 0:00:51.5]} 42. Kf3 {[%clk 0:00:13.1]} 42... Kd4 {[%clk
0:00:50.2]} 43. Kf4 {[%clk 0:00:13]} 43... f6 {[%clk 0:00:50.5]} 44. g5 {[%clk
0:00:12.5]} 44... e5+ {[%clk 0:00:50.6]} 45. Kg4 {[%clk 0:00:12.4]} 45... f5+
{[%clk 0:00:50.5]} 46. Kf3 {[%clk 0:00:12.8]} 46... a6 {[%clk 0:00:47.5]} 47.
Kg3 {[%clk 0:00:12.7]} 47... Ke4 {[%clk 0:00:46.6]} 48. a4 {[%clk 0:00:11.7]}
48... f4+ {[%clk 0:00:44.4]} 49. Kg4 {[%clk 0:00:11.8]} 49... f3 {[%clk
0:00:44.1]} 50. Kg3 {[%clk 0:00:12.3]} 50... Kf5 {[%clk 0:00:44.2]} 51. Kxf3
{[%clk 0:00:12.3]} 51... e4+ {[%clk 0:00:41.8]} 52. Ke3 {[%clk 0:00:12.4]} 52...
Ke5 {[%clk 0:00:42.1]} 53. Kf2 {[%clk 0:00:11.1]} 53... Kf4 {[%clk 0:00:42.5]}
54. Kg2 {[%clk 0:00:11.3]} 54... Kxg5 {[%clk 0:00:42.9]} 0-1

[Event "Early-Titled-Tuesday-Blitz-September-26-2023"]
[Site "Chess.com"]
[Date "2023.09.26"]
[Round "5"]
[White "Likvidator228"]
[Black "CheckThis4"]
[Result "0-1"]
[WhiteElo "2537"]
[BlackElo "2682"]
[TimeControl "180+1"]
[EndTime "8:58:17 PDT"]
[Termination "CheckThis4 won by checkmate"]

1. d4 {[%clk 0:03:00.9]} 1... Nf6 {[%clk 0:02:59.2]} 2. Bf4 {[%clk 0:03:00.6]}
2... d5 {[%clk 0:02:56.6]} 3. e3 {[%clk 0:03:00.7]} 3... c5 {[%clk 0:02:53.3]}
4. c3 {[%clk 0:02:59.9]} 4... Nc6 {[%clk 0:02:53]} 5. Nd2 {[%clk 0:02:59.6]}
5... cxd4 {[%clk 0:02:44.3]} 6. exd4 {[%clk 0:02:55.7]} 6... Bf5 {[%clk
0:02:38.7]} 7. Qb3 {[%clk 0:02:54.5]} 7... Qc8 {[%clk 0:02:35.1]} 8. Ngf3 {[%clk
0:02:48.4]} 8... e6 {[%clk 0:02:35]} 9. h3 {[%clk 0:02:45]} 9... Be7 {[%clk
0:02:34.3]} 10. Be2 {[%clk 0:02:44.7]} 10... O-O {[%clk 0:02:34.1]} 11. O-O
{[%clk 0:02:44.3]} 11... h6 {[%clk 0:02:32.4]} 12. Rfe1 {[%clk 0:02:43.2]} 12...
a6 {[%clk 0:02:30.8]} 13. a4 {[%clk 0:02:36.3]} 13... Re8 {[%clk 0:02:05.7]} 14.
Ne5 {[%clk 0:02:35.8]} 14... Nxe5 {[%clk 0:02:03]} 15. Bxe5 {[%clk 0:02:33.9]}
15... Nd7 {[%clk 0:02:01.9]} 16. Bf4 {[%clk 0:02:32.2]} 16... Qc6 {[%clk
0:01:54.4]} 17. Nf3 {[%clk 0:02:29.9]} 17... Bd6 {[%clk 0:01:49.1]} 18. Bxd6
{[%clk 0:02:27.6]} 18... Qxd6 {[%clk 0:01:50]} 19. a5 {[%clk 0:02:22.1]} 19...
Qc7 {[%clk 0:01:45]} 20. Qb4 {[%clk 0:02:19.3]} 20... Rac8 {[%clk 0:01:42.9]}
21. Bf1 {[%clk 0:02:16.7]} 21... Nb8 {[%clk 0:01:42.2]} 22. Ne5 {[%clk
0:02:15.7]} 22... f6 {[%clk 0:01:40.8]} 23. Nd3 {[%clk 0:02:15.7]} 23... Nc6
{[%clk 0:01:39.9]} 24. Qa4 {[%clk 0:02:10.3]} 24... e5 {[%clk 0:01:30.2]} 25.
dxe5 {[%clk 0:02:07.2]} 25... fxe5 {[%clk 0:01:31.1]} 26. Nc5 {[%clk 0:01:45]}
26... Nxa5 {[%clk 0:01:18.6]} 27. Qxa5 {[%clk 0:01:44.8]} 27... Qxc5 {[%clk
0:01:15.9]} 28. Qa4 {[%clk 0:01:42.1]} 28... Kh7 {[%clk 0:01:04.2]} 29. Rad1
{[%clk 0:01:41.3]} 29... Bg6 {[%clk 0:01:00.6]} 30. Re3 {[%clk 0:01:35.6]} 30...
Rcd8 {[%clk 0:00:56.7]} 31. Qg4 {[%clk 0:01:22.7]} 31... Qc6 {[%clk 0:00:48.2]}
32. Rg3 {[%clk 0:01:15.1]} 32... Qf6 {[%clk 0:00:38.1]} 33. Qb4 {[%clk
0:01:08.8]} 33... Rd7 {[%clk 0:00:35.2]} 34. Be2 {[%clk 0:00:51.2]} 34... e4
{[%clk 0:00:32.1]} 35. Bg4 {[%clk 0:00:48.8]} 35... Rf7 {[%clk 0:00:31.5]} 36.
Rd2 {[%clk 0:00:45.1]} 36... h5 {[%clk 0:00:31.6]} 37. Bd1 {[%clk 0:00:34.4]}
37... Qf4 {[%clk 0:00:31.1]} 38. Re3 {[%clk 0:00:32.2]} 38... Re5 {[%clk
0:00:28.3]} 39. g3 {[%clk 0:00:28]} 39... Qf6 {[%clk 0:00:24.3]} 40. h4 {[%clk
0:00:24.1]} 40... Rf5 {[%clk 0:00:24.2]} 41. Ree2 {[%clk 0:00:18.7]} 41... e3
{[%clk 0:00:24.4]} 42. fxe3 {[%clk 0:00:17.8]} 42... Rf1+ {[%clk 0:00:24.4]} 43.
Kh2 {[%clk 0:00:18.2]} 43... Qf3 {[%clk 0:00:23]} 44. Rg2 {[%clk 0:00:14.6]}
44... Rxd1 {[%clk 0:00:22.4]} 45. Rdf2 {[%clk 0:00:14.2]} 45... Qxf2 {[%clk
0:00:21.1]} 46. Rxf2 {[%clk 0:00:14.6]} 46... Rxf2+ {[%clk 0:00:21.5]} 47. Kh3
{[%clk 0:00:15.5]} 47... Rh1# {[%clk 0:00:19.1]} 0-1

[Event "Early-Titled-Tuesday-Blitz-September-26-2023"]
[Site "Chess.com"]
[Date "2023.09.26"]
[Round "5"]
[White "Shuvalov"]
[Black "CraiggoryC"]
[Result "1-0"]
[WhiteElo "2474"]
[BlackElo "2253"]
[TimeControl "180+1"]
[EndTime "8:58:17 PDT"]
[Termination "Shuvalov won on time"]

1. d4 {[%clk 0:03:00.9]} 1... e6 {[%clk 0:02:55.3]} 2. e4 {[%clk 0:02:59]} 2...
d5 {[%clk 0:02:54.7]} 3. Nc3 {[%clk 0:02:59.3]} 3... Bb4 {[%clk 0:02:54.1]} 4.
e5 {[%clk 0:02:59.2]} 4... c5 {[%clk 0:02:53.9]} 5. a3 {[%clk 0:02:59.5]} 5...
Bxc3+ {[%clk 0:02:54]} 6. bxc3 {[%clk 0:03:00.4]} 6... Ne7 {[%clk 0:02:54.4]} 7.
Qg4 {[%clk 0:02:59.5]} 7... Qc7 {[%clk 0:02:55]} 8. Qxg7 {[%clk 0:02:58.6]} 8...
Rg8 {[%clk 0:02:55.6]} 9. Qxh7 {[%clk 0:02:59]} 9... cxd4 {[%clk 0:02:56.2]} 10.
Ne2 {[%clk 0:02:59.3]} 10... Nbc6 {[%clk 0:02:56.4]} 11. f4 {[%clk 0:02:58.9]}
11... dxc3 {[%clk 0:02:56]} 12. h4 {[%clk 0:02:58.9]} 12... Bd7 {[%clk
0:02:48.8]} 13. h5 {[%clk 0:02:59]} 13... O-O-O {[%clk 0:02:43.6]} 14. Qd3
{[%clk 0:02:58.8]} 14... d4 {[%clk 0:02:43.9]} 15. Rb1 {[%clk 0:02:52.5]} 15...
Nf5 {[%clk 0:02:31.9]} 16. Rg1 {[%clk 0:02:48.4]} 16... Rg4 {[%clk 0:02:14.4]}
17. g3 {[%clk 0:02:47.1]} 17... Rdg8 {[%clk 0:01:28.4]} 18. Bh3 {[%clk
0:02:36.7]} 18... R4g7 {[%clk 0:01:08.4]} 19. g4 {[%clk 0:02:34.3]} 19... Nfe7
{[%clk 0:01:02.4]} 20. Kf2 {[%clk 0:02:16]} 20... Nd5 {[%clk 0:00:43.1]} 21. g5
{[%clk 0:01:48.9]} 21... Nxe5 {[%clk 0:00:26.3]} 22. fxe5 {[%clk 0:01:43.3]}
22... Qxe5 {[%clk 0:00:27.2]} 23. Rg3 {[%clk 0:00:53.8]} 23... f5 {[%clk
0:00:19.6]} 24. Qxd4 {[%clk 0:00:50.1]} 24... Qc7 {[%clk 0:00:10.7]} 25. Nxc3
{[%clk 0:00:44.7]} 25... f4 {[%clk 0:00:09.6]} 26. Rd3 {[%clk 0:00:38]} 26... e5
{[%clk 0:00:10]} 27. Qxd5 {[%clk 0:00:28.6]} 27... Bxh3 {[%clk 0:00:10.1]} 28.
Ne4 {[%clk 0:00:22.5]} 28... Bf5 {[%clk 0:00:08.8]} 29. Rc3 {[%clk 0:00:22.3]}
29... Bxe4 {[%clk 0:00:08.3]} 30. Rxc7+ {[%clk 0:00:21.8]} 30... Rxc7 {[%clk
0:00:09.2]} 31. Qxe4 {[%clk 0:00:22.2]} 31... Rxg5 {[%clk 0:00:09.7]} 32. Bb2
{[%clk 0:00:17.4]} 32... Rxh5 {[%clk 0:00:09]} 33. Rh1 {[%clk 0:00:16.8]} 33...
Rxh1 {[%clk 0:00:07.4]} 34. Qxh1 {[%clk 0:00:17.7]} 34... Rxc2+ {[%clk
0:00:07.7]} 35. Kf3 {[%clk 0:00:18.6]} 35... Rxb2 {[%clk 0:00:08.3]} 36. Qh8+
{[%clk 0:00:17.1]} 36... Kd7 {[%clk 0:00:07.6]} 37. Qxe5 {[%clk 0:00:16.7]}
37... Rb3+ {[%clk 0:00:07.5]} 38. Kxf4 {[%clk 0:00:16.6]} 38... Rxa3 {[%clk
0:00:07.1]} 39. Qd5+ {[%clk 0:00:16.1]} 1-0

[Event "Early-Titled-Tuesday-Blitz-September-26-2023"]
[Site "Chess.com"]
[Date "2023.09.26"]
[Round "5"]
[White "Doudou2015"]
[Black "ChessArchitect64"]
[Result "0-1"]
[WhiteElo "2172"]
[BlackElo "2255"]
[TimeControl "180+1"]
[EndTime "8:58:18 PDT"]
[Termination "ChessArchitect64 won on time"]

1. b3 {[%clk 0:03:00.9]} 1... Nf6 {[%clk 0:02:44.7]} 2. Bb2 {[%clk 0:03:01.8]}
2... e6 {[%clk 0:02:35.6]} 3. e3 {[%clk 0:03:01.4]} 3... Be7 {[%clk 0:02:34.8]}
4. f4 {[%clk 0:02:59]} 4... O-O {[%clk 0:02:35.1]} 5. Nf3 {[%clk 0:02:59.5]}
5... d5 {[%clk 0:02:34.8]} 6. Bd3 {[%clk 0:02:56]} 6... c5 {[%clk 0:02:34.4]} 7.
Nc3 {[%clk 0:02:48.1]} 7... Nc6 {[%clk 0:02:33.8]} 8. a3 {[%clk 0:02:47.1]} 8...
d4 {[%clk 0:02:29.9]} 9. Ne4 {[%clk 0:02:42.3]} 9... Nd5 {[%clk 0:02:26.3]} 10.
Qe2 {[%clk 0:02:30.1]} 10... f5 {[%clk 0:01:40.3]} 11. Neg5 {[%clk 0:01:49.1]}
11... e5 {[%clk 0:01:31.3]} 12. Bc4 {[%clk 0:01:25.5]} 12... e4 {[%clk
0:01:24.1]} 13. Ng1 {[%clk 0:01:10.5]} 13... Bxg5 {[%clk 0:01:06.8]} 14. fxg5
{[%clk 0:01:11.4]} 14... Be6 {[%clk 0:00:59.3]} 15. Nh3 {[%clk 0:00:59.9]} 15...
f4 {[%clk 0:00:17]} 16. Bxd5 {[%clk 0:00:54.9]} 16... Bxd5 {[%clk 0:00:11.5]}
17. Nxf4 {[%clk 0:00:53.8]} 17... Qxg5 {[%clk 0:00:10.2]} 18. Nxd5 {[%clk
0:00:49.2]} 18... Qxd5 {[%clk 0:00:11]} 19. O-O-O {[%clk 0:00:46.9]} 19... d3
{[%clk 0:00:11]} 20. cxd3 {[%clk 0:00:46]} 20... exd3 {[%clk 0:00:07.2]} 21. Qg4
{[%clk 0:00:44.3]} 21... Rf7 {[%clk 0:00:06.8]} 22. Qc4 {[%clk 0:00:35.7]} 22...
Qxc4+ {[%clk 0:00:06.6]} 23. bxc4 {[%clk 0:00:36.6]} 23... Na5 {[%clk
0:00:07.1]} 24. Rhf1 {[%clk 0:00:21.3]} 24... Nb3+ {[%clk 0:00:07.1]} 25. Kb1
{[%clk 0:00:20.2]} 25... Nxd2+ {[%clk 0:00:08]} 26. Rxd2 {[%clk 0:00:18.1]}
26... Rxf1+ {[%clk 0:00:08.5]} 27. Ka2 {[%clk 0:00:18.8]} 27... Rd8 {[%clk
0:00:08.2]} 28. Kb3 {[%clk 0:00:17.3]} 28... Re1 {[%clk 0:00:05.2]} 29. Be5
{[%clk 0:00:08.9]} 29... Re2 {[%clk 0:00:04]} 30. Kc3 {[%clk 0:00:07.9]} 30...
Rxd2 {[%clk 0:00:03.8]} 31. Kxd2 {[%clk 0:00:08]} 31... b6 {[%clk 0:00:04.4]}
32. a4 {[%clk 0:00:01.9]} 32... Kf7 {[%clk 0:00:04.6]} 0-1

[Event "Early-Titled-Tuesday-Blitz-September-26-2023"]
[Site "Chess.com"]
[Date "2023.09.26"]
[Round "5"]
[White "AlmasRakhmatullaev"]
[Black "DanielNaroditsky"]
[Result "1/2-1/2"]
[WhiteElo "2789"]
[BlackElo "3144"]
[TimeControl "180+1"]
[EndTime "8:58:19 PDT"]
[Termination "Game drawn by repetition"]

1. e4 {[%clk 0:03:00.9]} 1... c5 {[%clk 0:02:57.8]} 2. Nf3 {[%clk 0:03:01.1]}
2... d6 {[%clk 0:02:58.5]} 3. d4 {[%clk 0:03:01.1]} 3... cxd4 {[%clk 0:02:59.4]}
4. Qxd4 {[%clk 0:03:01.9]} 4... Nf6 {[%clk 0:02:58]} 5. h3 {[%clk 0:03:00.6]}
5... Nc6 {[%clk 0:02:54.6]} 6. Qe3 {[%clk 0:03:00.7]} 6... g6 {[%clk 0:02:45.9]}
7. Be2 {[%clk 0:03:01]} 7... Bg7 {[%clk 0:02:46.3]} 8. O-O {[%clk 0:03:01.5]}
8... O-O {[%clk 0:02:47.1]} 9. Rd1 {[%clk 0:03:02.2]} 9... Be6 {[%clk
0:02:41.7]} 10. Nc3 {[%clk 0:03:00.3]} 10... Nd7 {[%clk 0:02:27.9]} 11. Ng5
{[%clk 0:02:55.9]} 11... Nc5 {[%clk 0:02:21.1]} 12. a3 {[%clk 0:02:47.8]} 12...
Rc8 {[%clk 0:02:13]} 13. Rb1 {[%clk 0:02:33.1]} 13... Bd7 {[%clk 0:02:08.2]} 14.
Nf3 {[%clk 0:02:25.9]} 14... Be6 {[%clk 0:02:03.4]} 15. Ng5 {[%clk 0:02:25.3]}
15... Bd7 {[%clk 0:02:03.7]} 16. Nf3 {[%clk 0:02:25.9]} 16... f5 {[%clk
0:01:18.7]} 17. Bc4+ {[%clk 0:01:42.9]} 17... Kh8 {[%clk 0:01:18.7]} 18. b4
{[%clk 0:01:34.4]} 18... Nxe4 {[%clk 0:01:14.7]} 19. Nxe4 {[%clk 0:01:33.7]}
19... fxe4 {[%clk 0:01:15.6]} 20. Qxe4 {[%clk 0:01:34.5]} 20... Rxf3 {[%clk
0:00:58.8]} 21. gxf3 {[%clk 0:01:27.6]} 21... Bf5 {[%clk 0:00:59.3]} 22. Qe2
{[%clk 0:00:50.7]} 22... Nd4 {[%clk 0:00:59.5]} 23. Rxd4 {[%clk 0:00:50.9]}
23... Bxd4 {[%clk 0:01:00.4]} 24. Bg5 {[%clk 0:00:49.9]} 24... Qc7 {[%clk
0:00:43.5]} 25. Bb3 {[%clk 0:00:43.4]} 25... Kg7 {[%clk 0:00:20.4]} 26. Qxe7+
{[%clk 0:00:32.1]} 26... Qxe7 {[%clk 0:00:20.5]} 27. Bxe7 {[%clk 0:00:33]} 27...
Bxc2 {[%clk 0:00:12.5]} 28. Rc1 {[%clk 0:00:30.1]} 28... Re8 {[%clk 0:00:13.1]}
29. Rxc2 {[%clk 0:00:24.6]} 29... Rxe7 {[%clk 0:00:13.7]} 30. Bd5 {[%clk
0:00:23.7]} 30... Kf6 {[%clk 0:00:07.1]} 31. Kg2 {[%clk 0:00:22.1]} 31... b6
{[%clk 0:00:05.8]} 32. f4 {[%clk 0:00:16.2]} 32... h6 {[%clk 0:00:03.9]} 33. Kf3
{[%clk 0:00:15.1]} 33... g5 {[%clk 0:00:04.4]} 34. Rd2 {[%clk 0:00:14]} 34...
Bc3 {[%clk 0:00:04.2]} 35. Rc2 {[%clk 0:00:13.8]} 35... Bd4 {[%clk 0:00:04.8]}
36. Rd2 {[%clk 0:00:14.1]} 36... Bc3 {[%clk 0:00:04.7]} 37. Rc2 {[%clk
0:00:14.7]} 37... Bd4 {[%clk 0:00:04.8]} 1/2-1/2